bitfinex/quotes_BTCUSD_20230108
["timestamp","ask_amount","ask_price","bid_price","bid_amount"]
[1673172062373,0.44864159,16954.0,16953.0,2.92735664]
[1673172062622,0.44864159,16954.0,16953.0,2.32073364]
[1673172062879,0.44864159,16954.0,16953.0,3.62735664]
[1673172063163,0.44864159,16954.0,16953.0,3.02073364]
[1673172063427,0.18368768,16954.0,16953.0,3.80438416]
[1673172063918,0.007,16954.0,16953.0,4.76886124]
[1673172064689,0.007,16954.0,16953.0,3.89698781]
[1673172064941,0.007,16954.0,16953.0,4.76886209]
[1673172065457,0.007,16954.0,16953.0,3.89698781]
[1673172065710,0.007,16954.0,16953.0,3.63160988]
[1673172067009,0.007,16954.0,16953.0,3.89698781]
[1673172067321,0.007,16954.0,16953.0,3.63160988]
[1673172068620,0.18368768,16954.0,16953.0,3.45458236]
[1673172069062,0.18368768,16954.0,16953.0,2.84795936]
[1673172069820,0.18368768,16954.0,16953.0,3.63160988]
[1673172070311,0.18368768,16954.0,16953.0,3.02498688]
[1673172070564,0.18368768,16954.0,16953.0,3.63160988]
[1673172070780,0.18368768,16954.0,16953.0,3.02498688]
[1673172071063,0.007,16954.0,16953.0,3.63160988]
[1673172071561,0.93816587,16955.0,16954.0,1.18734317]
[1673172071819,0.93816587,16955.0,16954.0,2.90982454]
[1673172072064,0.53572159,16955.0,16954.0,2.90982454]
[1673172072337,0.88908437,16955.0,16954.0,2.30320154]
[1673172072591,0.88908437,16955.0,16954.0,2.90982454]
[1673172072860,0.71239669,16955.0,16954.0,2.90982454]
[1673172073110,0.71239669,16955.0,16954.0,2.91482454]
[1673172073881,0.71239669,16955.0,16954.0,2.30820154]
[1673172074135,0.71239669,16955.0,16954.0,2.91482454]
[1673172074629,0.71239669,16955.0,16954.0,2.30820154]
[1673172074892,0.88918565,16955.0,16954.0,2.91482454]
[1673172075140,0.53582287,16955.0,16954.0,2.91482454]
[1673172075415,0.88918565,16955.0,16954.0,2.30833768]
[1673172075667,0.53582287,16955.0,16954.0,2.91496068]
[1673172076688,0.53582287,16955.0,16954.0,2.30833768]
[1673172076938,0.53582287,16955.0,16954.0,2.91496068]
[1673172077196,0.53582287,16955.0,16954.0,2.30833768]
[1673172077451,0.88918565,16955.0,16954.0,2.30833768]
[1673172077693,0.53582287,16955.0,16954.0,2.91496068]
[1673172078157,0.53582287,16955.0,16954.0,2.30833768]
[1673172078643,0.88918565,16955.0,16954.0,2.91496068]
[1673172079140,0.53582093,16955.0,16954.0,2.91496068]
[1673172080458,0.54650476,16955.0,16954.0,2.91496068]
[1673172081197,0.54650476,16955.0,16954.0,2.30833768]
[1673172081714,0.54650476,16955.0,16954.0,1.82644237]
[1673172082484,0.89986754,16955.0,16954.0,1.82644237]
[1673172082962,0.54650476,16955.0,16954.0,1.82644237]
[1673172086312,0.54650476,16955.0,16954.0,1.19247931]
[1673172086809,0.72308052,16955.0,16954.0,1.19234317]
[1673172087052,0.72308052,16955.0,16954.0,1.31157749]
[1673172087296,0.72308052,16955.0,16954.0,1.31171363]
[1673172089839,1.16476389,16955.0,16954.0,1.31171363]
[1673172090086,0.89980998,16955.0,16954.0,1.31171363]
[1673172090341,1.16497648,16955.0,16954.0,1.31171363]
[1673172091105,1.16497803,16955.0,16954.0,1.31171363]
[1673172091359,0.72329466,16955.0,16954.0,1.31171363]
[1673172094338,1.16497803,16955.0,16954.0,1.31171363]
[1673172095335,1.16497803,16955.0,16954.0,1.31161239]
[1673172096472,0.89980998,16955.0,16954.0,1.31161239]
[1673172097219,0.89980998,16955.0,16954.0,1.94557545]
[1673172097488,1.16499281,16955.0,16954.0,1.31161239]
[1673172097752,0.72330944,16955.0,16954.0,1.31161239]
[1673172098007,0.72330944,16955.0,16954.0,1.31147625]
[1673172098008,0.89980998,16955.0,16954.0,1.31147625]
[1673172098502,0.89980998,16955.0,16954.0,1.19224193]
[1673172100804,1.16499289,16955.0,16954.0,1.19224193]
[1673172101301,0.72330952,16955.0,16954.0,1.19224193]
[1673172101836,0.72330952,16955.0,16954.0,1.19237807]
[1673172102081,0.72330952,16955.0,16954.0,1.18737807]
[1673172102860,0.72330952,16955.0,16954.0,1.30611588]
[1673172107306,0.89980998,16955.0,16954.0,1.30611588]
[1673172108222,0.72333182,16955.0,16954.0,1.30611588]
[1673172109749,0.72333182,16955.0,16954.0,1.94007894]
[1673172110921,1.16501519,16955.0,16954.0,1.94007894]
[1673172111146,0.72333182,16955.0,16954.0,1.82134113]
[1673172111373,1.16501519,16955.0,16954.0,1.85334113]
[1673172111640,0.72333182,16955.0,16954.0,1.85334113]
[1673172111932,1.16501519,16955.0,16954.0,1.85334113]
[1673172112363,1.16501519,16955.0,16954.0,2.03867524]
[1673172112625,0.72333182,16955.0,16954.0,2.03867524]
[1673172112882,1.16501519,16955.0,16954.0,2.03867524]
[1673172113667,0.72333182,16955.0,16954.0,2.03867524]
[1673172116903,0.72333182,16955.0,16954.0,1.85334113]
[1673172117434,1.16501519,16955.0,16954.0,1.2192856]
[1673172118194,0.72333182,16955.0,16954.0,1.2192856]
[1673172118444,1.16501519,16955.0,16954.0,1.2192856]
[1673172118698,0.72333182,16955.0,16954.0,1.2192856]
[1673172119704,1.16501519,16955.0,16954.0,1.2192856]
[1673172119989,0.89980998,16955.0,16954.0,1.2192856]
[1673172120235,0.89980998,16955.0,16954.0,1.34483767]
[1673172120490,0.89980998,16955.0,16954.0,1.2192856]
[1673172123607,0.89980998,16955.0,16954.0,1.85292915]
[1673172124616,0.89980998,16955.0,16954.0,1.85279301]
[1673172126406,0.89980998,16955.0,16954.0,1.21914946]
[1673172127190,1.1362432,16955.0,16954.0,1.21914946]
[1673172127438,1.1362432,16955.0,16954.0,1.2192856]
[1673172127936,1.1362432,16955.0,16954.0,1.21914946]
[1673172128683,1.1362432,16955.0,16954.0,1.2192856]
[1673172130227,1.1362432,16955.0,16954.0,1.21914946]
[1673172130475,1.1362432,16955.0,16954.0,1.2192856]
[1673172132186,1.48982601,16955.0,16954.0,1.2192856]
[1673172133679,1.48982601,16955.0,16954.0,1.85293078]
[1673172136232,0.90003001,16955.0,16954.0,1.85293078]
[1673172140101,0.90003001,16955.0,16954.0,1.85588678]
[1673172140354,0.72354306,16955.0,16954.0,1.85588678]
[1673172140615,0.72354306,16955.0,16954.0,2.04147546]
[1673172141339,0.72354306,16955.0,16954.0,2.04140256]
[1673172142468,1.16522643,16955.0,16954.0,2.04140256]
[1673172142807,0.72354306,16955.0,16954.0,2.04140256]
[1673172151315,0.72354306,16955.0,16954.0,1.22203256]
[1673172151631,1.16511819,16955.0,16954.0,1.22216223]
[1673172153693,1.16511819,16955.0,16954.0,1.85574568]
[1673172153942,0.72343482,16955.0,16954.0,1.85574568]
[1673172154445,0.72328967,16955.0,16954.0,1.85574568]
[1673172154695,0.72328967,16955.0,16954.0,2.04132025]
[1673172156353,0.89977662,16955.0,16954.0,2.04132025]
[1673172156669,1.16499719,16955.0,16954.0,2.04132025]
[1673172156929,0.89977662,16955.0,16954.0,2.04132025]
[1673172157798,1.16500146,16955.0,16954.0,2.04132025]
[1673172158041,0.72331809,16955.0,16954.0,2.04132025]
[1673172160560,1.16499349,16955.0,16954.0,2.04132025]
[1673172160832,0.72331012,16955.0,16954.0,2.04132025]
[1673172164662,0.72331012,16955.0,16954.0,2.04088603]
[1673172166759,0.72331012,16955.0,16954.0,1.40730258]
[1673172167010,0.72331012,16955.0,16954.0,1.40717291]
[1673172167255,0.72331012,16955.0,16954.0,1.40730873]
[1673172167501,0.72331012,16955.0,16954.0,2.04076595]
[1673172167756,0.72331012,16955.0,16954.0,1.40730873]
[1673172168080,0.72331012,16955.0,16954.0,2.04076595]
[1673172168259,0.72331012,16955.0,16954.0,2.04076581]
[1673172169889,1.16499349,16955.0,16954.0,2.04076596]
[1673172170411,1.16499349,16955.0,16954.0,1.40730873]
[1673172170689,0.72331012,16955.0,16954.0,1.40730873]
[1673172170943,1.16499349,16955.0,16954.0,2.04076596]
[1673172171698,0.72331012,16955.0,16954.0,2.04076579]
[1673172181223,0.72331012,16955.0,16954.0,1.85519122]
[1673172181724,1.16499349,16955.0,16954.0,1.85519122]
[1673172182513,0.72331012,16955.0,16954.0,1.85519122]
[1673172182770,1.16499349,16955.0,16954.0,1.85519122]
[1673172183015,0.72331012,16955.0,16954.0,1.85519122]
[1673172186136,0.72331012,16955.0,16954.0,2.11739959]
[1673172191074,0.90014136,16955.0,16954.0,2.11739959]
[1673172191951,0.72331012,16955.0,16954.0,2.11739959]
[1673172192824,0.90013784,16955.0,16954.0,2.11739959]
[1673172194050,0.72331012,16955.0,16954.0,2.11739959]
[1673172196337,0.90013766,16955.0,16954.0,2.11739959]
[1673172198012,0.54655485,16955.0,16954.0,2.11739959]
[1673172201231,0.28133798,16955.0,16954.0,3.60105011]
[1673172202961,0.28133798,16955.0,16954.0,3.58425811]
[1673172203214,0.28133798,16955.0,16954.0,4.19088111]
[1673172203730,0.28133798,16955.0,16954.0,3.58425811]
[1673172203992,0.28133798,16955.0,16954.0,4.01385359]
[1673172204233,0.28133798,16955.0,16954.0,3.40723059]
[1673172204981,0.28133798,16955.0,16954.0,4.01385359]
[1673172205474,0.28133798,16955.0,16954.0,3.40723059]
[1673172205712,0.28133798,16955.0,16954.0,4.01385359]
[1673172205964,0.28133798,16955.0,16954.0,3.40723059]
[1673172206440,0.28133798,16955.0,16954.0,4.01385359]
[1673172206944,0.28133798,16955.0,16954.0,3.40723059]
[1673172207202,0.28133798,16955.0,16954.0,4.01385359]
[1673172208726,0.28133798,16955.0,16954.0,3.40723059]
[1673172208976,0.28133798,16955.0,16954.0,4.01385359]
[1673172209236,0.28133798,16955.0,16954.0,3.40723059]
[1673172209483,0.28133798,16955.0,16954.0,4.01385359]
[1673172212254,0.28133798,16955.0,16954.0,3.40723059]
[1673172212774,0.28133798,16955.0,16954.0,4.01385359]
[1673172213529,0.28133798,16955.0,16954.0,3.42402259]
[1673172214312,0.28133798,16955.0,16954.0,2.46181422]
[1673172214558,0.28133798,16955.0,16954.0,1.85519122]
[1673172215074,0.28133798,16955.0,16954.0,2.46181422]
[1673172215317,0.28133798,16955.0,16954.0,3.16181422]
[1673172215828,0.54655485,16955.0,16954.0,3.16181422]
[1673172216081,0.54655485,16955.0,16954.0,2.52835716]
[1673172216330,0.54655485,16955.0,16954.0,2.44541393]
[1673172217606,0.54655485,16955.0,16954.0,2.82562678]
[1673172218112,0.54655485,16955.0,16954.0,2.44541393]
[1673172218367,0.54655485,16955.0,16954.0,2.35203693]
[1673172218615,0.54655485,16955.0,16954.0,1.74541393]
[1673172223765,0.90013766,16955.0,16954.0,1.74541393]
[1673172224037,0.54655485,16955.0,16954.0,1.74541393]
[1673172224303,0.54655485,16955.0,16954.0,2.05562678]
[1673172226200,0.54655485,16955.0,16954.0,1.74541393]
[1673172229371,0.54655485,16955.0,16954.0,1.74527811]
[1673172229372,0.72331012,16955.0,16954.0,1.74527811]
[1673172229576,0.72331012,16955.0,16954.0,1.74540162]
[1673172231886,0.54651074,16955.0,16954.0,1.74540162]
[1673172234418,0.72331012,16955.0,16954.0,1.74540162]
[1673172234659,0.72331012,16955.0,16954.0,1.99662843]
[1673172235915,0.90010224,16955.0,16954.0,1.99662843]
[1673172236393,0.72331012,16955.0,16954.0,1.99664013]
[1673172237275,0.72331012,16955.0,16954.0,1.74541332]
[1673172239190,0.90009611,16955.0,16954.0,1.74541332]
[1673172239752,0.72331012,16955.0,16954.0,1.74541332]
[1673172240009,0.90009599,16955.0,16954.0,1.74541332]
[1673172240545,0.72331012,16955.0,16954.0,1.74541332]
[1673172241483,0.90009503,16955.0,16954.0,1.9966413]
[1673172241725,0.54651222,16955.0,16954.0,1.9966413]
[1673172250828,0.54651222,16955.0,16954.0,1.99650609]
[1673172251085,0.54651222,16955.0,16954.0,1.47295041]
[1673172252682,0.28129535,16955.0,16954.0,1.47295041]
[1673172252903,0.28129535,16955.0,16954.0,2.06278141]
[1673172254202,0.54651222,16955.0,16954.0,2.06278141]
[1673172254462,0.28129535,16955.0,16954.0,2.06278141]
[1673172254731,0.28129535,16955.0,16954.0,2.76278141]
[1673172255245,0.54651222,16955.0,16954.0,2.76278141]
[1673172255973,0.54651222,16955.0,16954.0,2.06278141]
[1673172256438,0.28129535,16955.0,16954.0,2.06278141]
[1673172256886,0.54651222,16955.0,16954.0,2.06278141]
[1673172257466,0.28129535,16955.0,16954.0,2.06278141]
[1673172257752,0.54651222,16955.0,16954.0,2.06278141]
[1673172258012,0.28129535,16955.0,16954.0,2.06278141]
[1673172260504,0.54651222,16955.0,16954.0,2.06278141]
[1673172260746,0.28129535,16955.0,16954.0,2.06278141]
[1673172262526,0.54651222,16955.0,16954.0,2.06278141]
[1673172262977,0.28129535,16955.0,16954.0,2.06278141]
[1673172264206,0.28129535,16955.0,16954.0,2.54712739]
[1673172264461,0.28129535,16955.0,16954.0,3.33077791]
[1673172264708,0.10451044,16955.0,16954.0,3.33077791]
[1673172264924,0.28129535,16955.0,16954.0,2.72415491]
[1673172265221,0.28129535,16955.0,16954.0,3.33077791]
[1673172265440,0.10451044,16955.0,16954.0,4.03077791]
[1673172270949,0.10451044,16955.0,16954.0,3.42415491]
[1673172271203,0.10451044,16955.0,16954.0,4.03077791]
[1673172276521,0.10451044,16955.0,16954.0,3.42415491]
[1673172276763,0.10451044,16955.0,16954.0,4.03077791]
[1673172277256,0.10451044,16955.0,16954.0,3.33077791]
[1673172277483,0.10451044,16955.0,16954.0,3.62568791]
[1673172278274,0.10451044,16955.0,16954.0,3.71906491]
[1673172278767,0.10451044,16955.0,16954.0,4.32568791]
[1673172279249,0.10451044,16955.0,16954.0,3.71906491]
[1673172279742,0.10451044,16955.0,16954.0,4.32568791]
[1673172283065,0.10451044,16955.0,16954.0,3.71906491]
[1673172283307,0.10451044,16955.0,16954.0,4.32568791]
[1673172283818,0.10451044,16955.0,16954.0,4.32567791]
[1673172284284,0.10451044,16955.0,16954.0,3.62567791]
[1673172285328,0.10451044,16955.0,16954.0,3.71906491]
[1673172285583,0.10451044,16955.0,16954.0,4.57427384]
[1673172285828,0.10451044,16955.0,16954.0,6.05270955]
[1673172286309,0.10451044,16955.0,16954.0,5.18089684]
[1673172286558,0.10451044,16955.0,16954.0,4.57427384]
[1673172286786,0.10451044,16955.0,16954.0,5.18089684]
[1673172287044,0.10451044,16955.0,16954.0,4.91551891]
[1673172288277,0.10451044,16955.0,16954.0,4.30889591]
[1673172288542,0.10451044,16955.0,16954.0,4.91551891]
[1673172288780,0.10451044,16955.0,16954.0,4.30889591]
[1673172288994,0.10451044,16955.0,16954.0,4.91551891]
[1673172289738,0.10451044,16955.0,16954.0,4.88351891]
[1673172289979,0.10451044,16955.0,16954.0,4.27689591]
[1673172290238,0.10451044,16955.0,16954.0,4.37989591]
[1673172290756,0.10451044,16955.0,16954.0,4.98651891]
[1673172291710,0.10451044,16955.0,16954.0,5.25189684]
[1673172291964,0.10451044,16955.0,16954.0,5.25188684]
[1673172292215,0.10451044,16955.0,16954.0,4.64526384]
[1673172292720,0.10451044,16955.0,16954.0,4.55188684]
[1673172292959,0.10451044,16955.0,16954.0,3.94526384]
[1673172293685,0.10451044,16955.0,16954.0,5.42370415]
[1673172293961,0.10451044,16955.0,16954.0,6.12370415]
[1673172295672,0.10451044,16955.0,16954.0,5.25188684]
[1673172296149,0.10451044,16955.0,16954.0,4.64526384]
[1673172296362,0.10451044,16955.0,16954.0,5.51708034]
[1673172296614,0.10451044,16955.0,16954.0,6.12370334]
[1673172296905,0.10451044,16955.0,16954.0,5.25188684]
[1673172297410,0.10451044,16955.0,16954.0,4.95698684]
[1673172297656,0.10451044,16955.0,16954.0,4.69160891]
[1673172298900,0.10451044,16955.0,16954.0,4.08498591]
[1673172299111,0.10451044,16955.0,16954.0,4.69160891]
[1673172299888,0.10451044,16955.0,16954.0,4.28650891]
[1673172300104,0.10451044,16955.0,16954.0,4.55188684]
[1673172300360,0.10451044,16955.0,16954.0,4.28650891]
[1673172300866,0.10451044,16955.0,16954.0,4.98650891]
[1673172301297,0.10451044,16955.0,16954.0,4.98026591]
[1673172301509,0.10451044,16955.0,16954.0,4.37364291]
[1673172301769,0.10451044,16955.0,16954.0,4.98026591]
[1673172302278,0.10451044,16955.0,16954.0,5.24564384]
[1673172303264,0.10451044,16955.0,16954.0,6.1174636]
[1673172304253,0.10451044,16955.0,16954.0,5.5108506]
[1673172304504,0.10451044,16955.0,16954.0,6.1174736]
[1673172304729,0.10451044,16955.0,16954.0,5.5108506]
[1673172304980,0.10451044,16955.0,16954.0,6.1174736]
[1673172305232,0.10451044,16955.0,16954.0,5.8225636]
[1673172305480,0.10451044,16955.0,16954.0,6.1174736]
[1673172306228,0.10451044,16955.0,16954.0,5.5108506]
[1673172306474,0.10451044,16955.0,16954.0,6.1174736]
[1673172306965,0.10451044,16955.0,16954.0,5.5108506]
[1673172307452,0.10451044,16955.0,16954.0,5.4078506]
[1673172307695,0.10451044,16955.0,16954.0,6.1174736]
[1673172307944,0.10451044,16955.0,16954.0,6.29209303]
[1673172308195,0.10451044,16955.0,16954.0,6.46918115]
[1673172308445,0.10451044,16955.0,16954.0,6.46918086]
[1673172308713,0.10451044,16955.0,16954.0,6.29209303]
[1673172310427,0.10451044,16955.0,16954.0,6.04086505]
[1673172310666,0.10451044,16955.0,16954.0,5.86629035]
[1673172310884,0.10451044,16955.0,16954.0,5.25966735]
[1673172311095,0.10451044,16955.0,16954.0,5.86629035]
[1673172311823,0.10451044,16955.0,16954.0,5.86616626]
[1673172312089,0.10451044,16955.0,16954.0,4.99447057]
[1673172312341,0.10451044,16955.0,16954.0,4.12246964]
[1673172312589,0.10451044,16955.0,16954.0,5.86629184]
[1673172312833,0.10451044,16955.0,16954.0,5.25966884]
[1673172313099,0.10451044,16955.0,16954.0,5.86629184]
[1673172313819,0.10451044,16955.0,16954.0,4.55966884]
[1673172314063,0.10451044,16955.0,16954.0,5.16629184]
[1673172314811,0.10451044,16955.0,16954.0,5.86629184]
[1673172315057,0.10451044,16955.0,16954.0,5.25966884]
[1673172315312,0.10451044,16955.0,16954.0,5.86629184]
[1673172315550,0.10451044,16955.0,16954.0,5.86616777]
[1673172316090,0.10451044,16955.0,16954.0,4.3877235]
[1673172316586,0.10451044,16955.0,16954.0,4.99447059]
[1673172316852,0.10451044,16955.0,16954.0,4.38784759]
[1673172317119,0.10451044,16955.0,16954.0,4.99447059]
[1673172317615,0.10451044,16955.0,16954.0,4.38784759]
[1673172317871,0.10451044,16955.0,16954.0,4.99447059]
[1673172318369,0.28129535,16955.0,16954.0,4.72909266]
[1673172319112,0.28129535,16955.0,16954.0,4.12246966]
[1673172319577,0.10451044,16955.0,16954.0,4.72909266]
[1673172320085,0.10451044,16955.0,16954.0,4.99447059]
[1673172320323,0.28129535,16955.0,16954.0,4.12246966]
[1673172320575,0.28129535,16955.0,16954.0,4.72909264]
[1673172322741,0.28129535,16955.0,16954.0,5.32268769]
[1673172322979,0.28129535,16955.0,16954.0,4.71606469]
[1673172323222,0.28129535,16955.0,16954.0,5.32268769]
[1673172324433,0.28129535,16955.0,16954.0,4.72909264]
[1673172324915,0.28129535,16955.0,16954.0,4.12246964]
[1673172325195,0.28129535,16955.0,16954.0,4.72909264]
[1673172325710,0.28129535,16955.0,16954.0,4.12246964]
[1673172325955,0.28129535,16955.0,16954.0,4.72909264]
[1673172326211,0.28129535,16955.0,16954.0,4.12246964]
[1673172326492,0.28129535,16955.0,16954.0,4.72909264]
[1673172326493,0.10451044,16955.0,16954.0,4.72909264]
[1673172327489,0.10451044,16955.0,16954.0,4.99447057]
[1673172327712,0.10451044,16955.0,16954.0,4.38784757]
[1673172327971,0.10451044,16955.0,16954.0,4.99447057]
[1673172328195,0.10451044,16955.0,16954.0,5.86628958]
[1673172328442,0.10451044,16955.0,16954.0,5.25966658]
[1673172329231,0.10451044,16955.0,16954.0,5.86628958]
[1673172329930,0.10451044,16955.0,16954.0,5.25966658]
[1673172330175,0.10451044,16955.0,16954.0,5.86628958]
[1673172330931,0.10451044,16955.0,16954.0,3.81480857]
[1673172331146,0.10451044,16955.0,16954.0,3.20818557]
[1673172331369,0.10451044,16955.0,16954.0,3.81480857]
[1673172331604,0.10451044,16955.0,16954.0,3.54943064]
[1673172331839,0.10451044,16955.0,16954.0,4.01003206]
[1673172332565,0.09382661,16955.0,16954.0,3.59317393]
[1673172333037,0.09382661,16955.0,16954.0,2.98655093]
[1673172333281,0.09382661,16955.0,16954.0,3.25192886]
[1673172333540,0.09382661,16955.0,16954.0,3.59317393]
[1673172333787,0.09382661,16955.0,16954.0,2.98655093]
[1673172334039,0.09382661,16955.0,16954.0,3.59317393]
[1673172334254,0.09382661,16955.0,16954.0,2.89317393]
[1673172334466,0.09382661,16955.0,16954.0,2.28655093]
[1673172334707,0.09382661,16955.0,16954.0,2.89317393]
[1673172335022,0.09382661,16955.0,16954.0,3.15855186]
[1673172335273,0.09382661,16955.0,16954.0,3.85855186]
[1673172335491,0.09382661,16955.0,16954.0,3.25192886]
[1673172335721,0.09382661,16955.0,16954.0,3.85855186]
[1673172336286,0.09382661,16955.0,16954.0,3.59317393]
[1673172336509,0.09382661,16955.0,16954.0,3.45152668]
[1673172336757,0.09382661,16955.0,16954.0,4.05814968]
[1673172336980,0.09382661,16955.0,16954.0,4.32352761]
[1673172337869,0.09382661,16955.0,16954.0,3.42199461]
[1673172338122,0.09382661,16955.0,16954.0,3.45152668]
[1673172338374,0.09382661,16955.0,16954.0,3.29826393]
[1673172338624,0.27061152,16955.0,16954.0,3.29826393]
[1673172338903,0.09382661,16955.0,16954.0,3.29826393]
[1673172339141,0.09382661,16955.0,16954.0,2.69164093]
[1673172339371,0.09382661,16955.0,16954.0,3.29826393]
[1673172339813,0.09382661,16955.0,16954.0,2.69164093]
[1673172340020,0.09382661,16955.0,16954.0,3.29826393]
[1673172340523,0.09382661,16955.0,16954.0,2.69164093]
[1673172340790,0.09382661,16955.0,16954.0,3.29826393]
[1673172341027,0.09382661,16955.0,16954.0,2.69164093]
[1673172341270,0.09382661,16955.0,16954.0,3.29826393]
[1673172341745,0.09382661,16955.0,16954.0,2.69164093]
[1673172341964,0.09382661,16955.0,16954.0,3.29826393]
[1673172342459,0.09382661,16955.0,16954.0,2.69164093]
[1673172342926,0.09382661,16955.0,16954.0,3.00257938]
[1673172343917,0.09382661,16955.0,16954.0,3.70257938]
[1673172344167,0.27061152,16955.0,16954.0,3.70257938]
[1673172344415,0.27061152,16955.0,16954.0,3.09595638]
[1673172344912,0.27061152,16955.0,16954.0,3.99748938]
[1673172346197,0.27061152,16955.0,16954.0,3.59317393]
[1673172346692,0.53582839,16955.0,16954.0,2.51444461]
[1673172346942,0.53582839,16955.0,16954.0,1.81444461]
[1673172347187,0.53582839,16955.0,16954.0,1.22710144]
[1673172347445,0.71262629,16955.0,16954.0,1.22710144]
[1673172347702,0.71262629,16955.0,16954.0,1.2273434]
[1673172348734,0.53580546,16955.0,16954.0,1.2273434]
[1673172349757,0.53580546,16955.0,16954.0,1.8339664]
[1673172350006,0.53580546,16955.0,16954.0,2.05636631]
[1673172350586,0.53580546,16955.0,16954.0,1.22710144]
[1673172351060,0.88938827,16955.0,16954.0,1.22710144]
[1673172351543,0.88938827,16955.0,16954.0,1.22947111]
[1673172352078,0.53580546,16955.0,16954.0,1.22947111]
[1673172356314,0.53580546,16955.0,16954.0,1.22710144]
[1673172357313,0.71262629,16955.0,16954.0,1.22710144]
[1673172357565,0.88932786,16955.0,16954.0,1.2274498]
[1673172357831,0.53574505,16955.0,16954.0,1.2274498]
[1673172358952,0.27052818,16955.0,16954.0,1.2274498]
[1673172359177,0.53574505,16955.0,16954.0,1.2274498]
[1673172359703,0.53574505,16955.0,16954.0,1.44986035]
[1673172360196,0.53574505,16955.0,16954.0,1.2274498]
[1673172361977,0.27052818,16955.0,16954.0,1.2274498]
[1673172362231,0.53574505,16955.0,16954.0,1.2274498]
[1673172362445,0.27052818,16955.0,16954.0,1.2274498]
[1673172362722,0.53574505,16955.0,16954.0,1.2274498]
[1673172362969,0.53574505,16955.0,16954.0,1.43215313]
[1673172369680,0.27052818,16955.0,16954.0,2.09806896]
[1673172369931,0.27052818,16955.0,16954.0,2.70469196]
[1673172371388,0.27052818,16955.0,16954.0,2.09806896]
[1673172371901,0.27052818,16955.0,16954.0,2.70469196]
[1673172372896,0.27052818,16955.0,16954.0,2.09806896]
[1673172373421,0.27052818,16955.0,16954.0,2.70469196]
[1673172373669,0.27052818,16955.0,16954.0,2.09806896]
[1673172374441,0.27052818,16955.0,16954.0,2.70469196]
[1673172374937,0.27052818,16955.0,16954.0,2.09806896]
[1673172375193,0.27052818,16955.0,16954.0,2.70469196]
[1673172375450,0.27052818,16955.0,16954.0,2.09806896]
[1673172375968,0.27052818,16955.0,16954.0,2.70469196]
[1673172376212,0.27052818,16955.0,16954.0,2.09806896]
[1673172376722,0.27052818,16955.0,16954.0,3.40469196]
[1673172377480,0.27052818,16955.0,16954.0,2.79806896]
[1673172377979,0.27052818,16955.0,16954.0,3.40469196]
[1673172378227,0.27052818,16955.0,16954.0,3.84714214]
[1673172378228,0.09382661,16955.0,16954.0,3.84714214]
[1673172378478,0.09382661,16955.0,16954.0,3.58176421]
[1673172380538,0.09382661,16955.0,16954.0,3.58144821]
[1673172381016,0.09382661,16955.0,16954.0,2.88144821]
[1673172382342,0.09382661,16955.0,16954.0,3.58144821]
[1673172389916,0.09382661,16955.0,16954.0,2.88144821]
[1673172390643,0.09382661,16955.0,16954.0,2.27482521]
[1673172390933,0.09382661,16955.0,16954.0,3.58144821]
[1673172393207,0.09382661,16955.0,16954.0,2.97482521]
[1673172393477,0.09382661,16955.0,16954.0,3.58144821]
[1673172394001,0.09382661,16955.0,16954.0,2.97482521]
[1673172394237,0.09382661,16955.0,16954.0,3.58144821]
[1673172394487,0.09382661,16955.0,16954.0,2.97482521]
[1673172394711,0.09382661,16955.0,16954.0,3.19967263]
[1673172396215,0.09382661,16955.0,16954.0,2.77012188]
[1673172396715,0.09382661,16955.0,16954.0,3.19967263]
[1673172396946,0.09382661,16955.0,16954.0,2.49967263]
[1673172397164,0.09382661,16955.0,16954.0,1.89304963]
[1673172397409,0.09382661,16955.0,16954.0,2.49967263]
[1673172397904,0.09382661,16955.0,16954.0,2.75580114]
[1673172398154,0.09382661,16955.0,16954.0,3.45580114]
[1673172399144,0.09382661,16955.0,16954.0,3.27872889]
[1673172399364,0.09382661,16955.0,16954.0,3.45580114]
[1673172399587,0.09382661,16955.0,16954.0,3.27872889]
[1673172399845,0.09382661,16955.0,16954.0,3.45580114]
[1673172400101,0.09382661,16955.0,16954.0,3.27872889]
[1673172401149,0.09382661,16955.0,16954.0,2.67210589]
[1673172401368,0.09382661,16955.0,16954.0,2.84917814]
[1673172401626,0.09382661,16955.0,16954.0,3.45580114]
[1673172402420,0.09382661,16955.0,16954.0,2.84917814]
[1673172402674,0.09382661,16955.0,16954.0,3.45580114]
[1673172403412,0.09382661,16955.0,16954.0,2.84917814]
[1673172403920,0.09382661,16955.0,16954.0,2.75580114]
[1673172404429,0.09382661,16955.0,16954.0,2.14917814]
[1673172405014,0.09382661,16955.0,16954.0,3.45580114]
[1673172406174,0.09382661,16955.0,16954.0,2.84917814]
[1673172406661,0.09382661,16955.0,16954.0,3.45580114]
[1673172406914,0.09382661,16955.0,16954.0,3.27872889]
[1673172407157,0.09382661,16955.0,16954.0,2.84917814]
[1673172407413,0.09382661,16955.0,16954.0,3.45580114]
[1673172408195,0.09382661,16955.0,16954.0,2.84917814]
[1673172408945,0.09382661,16955.0,16954.0,3.45580114]
[1673172409701,0.09382661,16955.0,16954.0,2.84917814]
[1673172409960,0.09382661,16955.0,16954.0,3.45580114]
[1673172410985,0.09382661,16955.0,16954.0,2.75580114]
[1673172411311,0.09382661,16955.0,16954.0,2.14917814]
[1673172411485,0.09382661,16955.0,16954.0,2.75580114]
[1673172411996,0.09382661,16955.0,16954.0,3.45580114]
[1673172412994,0.09382661,16955.0,16954.0,2.84917814]
[1673172413253,0.27052818,16955.0,16954.0,3.27838053]
[1673172413497,0.27052818,16955.0,16954.0,2.67218535]
[1673172415050,0.27052818,16955.0,16954.0,3.27880835]
[1673172416066,0.27052818,16955.0,16954.0,2.67218535]
[1673172416576,0.53574505,16955.0,16954.0,2.67218535]
[1673172417847,0.53574505,16955.0,16954.0,2.59312909]
[1673172418105,0.53574505,16955.0,16954.0,2.59270127]
[1673172418350,0.53574505,16955.0,16954.0,2.59305361]
[1673172419082,0.27052818,16955.0,16954.0,3.19967661]
[1673172419587,0.27052818,16955.0,16954.0,2.49967661]
[1673172420193,0.27052818,16955.0,16954.0,1.89305361]
[1673172420367,0.27052818,16955.0,16954.0,2.49967661]
[1673172420618,0.27052818,16955.0,16954.0,3.19967661]
[1673172421418,0.27052818,16955.0,16954.0,3.55990429]
[1673172422660,0.27052818,16955.0,16954.0,2.95328129]
[1673172422906,0.27052818,16955.0,16954.0,3.55990429]
[1673172424760,0.27052818,16955.0,16954.0,3.19569161]
[1673172425020,0.27052818,16955.0,16954.0,2.58906861]
[1673172425271,0.27052818,16955.0,16954.0,3.19569161]
[1673172426609,0.27052818,16955.0,16954.0,1.88906861]
[1673172427603,0.27052818,16955.0,16954.0,2.58906861]
[1673172428102,0.27052818,16955.0,16954.0,3.19569161]
[1673172428356,0.27052818,16955.0,16954.0,2.58906861]
[1673172428621,0.27052818,16955.0,16954.0,3.19569161]
[1673172428868,0.27052818,16955.0,16954.0,3.55950579]
[1673172429123,0.27052818,16955.0,16954.0,2.95288279]
[1673172429377,0.27052818,16955.0,16954.0,3.55950579]
[1673172429880,0.27052818,16955.0,16954.0,3.19569161]
[1673172430367,0.27052818,16955.0,16954.0,2.58906861]